bitfinex/quotes_ETHUSD_20240711
["timestamp","ask_amount","ask_price","bid_price","bid_amount"]
[1720704778846,6.27852,3185.5,3185.0,2.3224]
[1720704779055,0.313894,3185.7,3184.7,7.29]
[1720704779056,0.96152521,3185.7,3184.7,7.29]
[1720704779201,3.13932,3185.4,3184.7,7.29]
[1720704779540,1.08741715,3185.3,3184.7,7.29]
[1720704779711,0.42267372,3185.3,3184.7,7.29]
[1720704780031,3.56215372,3185.3,3184.7,7.29]
[1720704780237,0.42267372,3185.3,3184.7,7.29]
[1720704780733,3.13957,3185.2,3184.7,7.29]
[1720704780919,3.13975,3185.0,3184.7,7.29]
[1720704781128,0.313975,3184.9,3184.7,7.29]
[1720704781310,4.2274624,3184.8,3184.7,7.29]
[1720704781509,1.0875524,3184.8,3183.9,2.3688]
[1720704781715,1.0875524,3184.7,3183.9,2.3688]
[1720704781914,0.313975,3184.9,3183.9,2.3688]
[1720704782112,0.64763121,3185.1,3184.0,0.29969318]
[1720704782308,0.64763121,3185.4,3184.1,2.3096]
[1720704782511,4.22691604,3185.3,3184.1,2.3096]
[1720704782713,1.73507725,3185.2,3184.2,0.06280235]
[1720704782950,1.08744604,3185.1,3184.2,0.06280235]
[1720704783147,1.08743853,3185.3,3184.4,2.3378]
[1720704783449,1.08745225,3185.2,3184.4,2.3378]
[1720704783602,1.08747697,3185.1,3184.4,2.3378]
[1720704783802,3.78699121,3185.4,3184.4,2.3378]
[1720704784015,3.13957,3185.2,3184.4,2.3378]
[1720704784221,3.13981,3184.9,3184.4,2.3378]
[1720704784404,1.51015055,3185.1,3183.9,2.3633]
[1720704784405,1.08757659,3184.8,3183.9,2.3633]
[1720704784629,3.14016,3184.6,3183.9,2.3633]
[1720704784905,1.73530514,3184.5,3183.9,2.3633]
[1720704785104,1.08771416,3184.4,3183.9,2.3633]
[1720704785342,1.08771416,3184.3,3183.9,2.3633]
[1720704785545,0.64948309,3184.5,3183.2,19.41]
[1720704785717,3.78993309,3184.3,3183.3,2.397]
[1720704786046,1.08769593,3184.2,3183.3,2.397]
[1720704786348,1.73717902,3184.2,3183.3,2.397]
[1720704786517,1.08769593,3184.1,3183.3,2.397]
[1720704786719,0.64948309,3184.3,3183.3,2.397]
[1720704786904,1.08775877,3184.2,3183.4,1.03151835]
[1720704787104,0.64948309,3184.7,3183.6,2.4604]
[1720704787323,1.0875917,3184.6,3183.6,2.4604]
[1720704787639,1.08760889,3184.5,3183.6,2.4604]
[1720704787872,3.14032,3184.4,3183.6,2.4604]
[1720704788165,0.96351509,3184.3,3183.6,2.4604]
[1720704788363,2.0512439,3184.3,3183.6,2.4604]
[1720704788550,0.96351509,3184.3,3183.6,2.4604]
[1720704788751,1.08774023,3184.2,3183.6,2.4604]
[1720704788933,0.314032,3184.3,3183.6,2.4604]
[1720704789338,4.10386743,3184.3,3183.6,2.4604]
[1720704789536,0.64937543,3184.0,3183.6,2.4604]
[1720704790463,0.64937543,3184.1,3183.6,2.4604]
[1720704790827,0.64937543,3184.0,3183.6,2.4604]
[1720704791236,3.78998543,3184.1,3183.2,7.29]
[1720704791453,0.64937543,3183.6,3183.2,7.29]
[1720704791658,1.12581529,3183.6,3183.1,2.3881]
[1720704791860,0.64937543,3183.5,3183.1,2.3881]
[1720704792066,0.64937543,3183.4,3182.8,7.29]
[1720704792360,0.64937543,3183.4,3181.6,3.14301]
[1720704792361,3.14185,3182.9,3182.0,2.3294]
[1720704792582,0.64937543,3183.0,3182.0,2.3294]
[1720704792728,0.64937543,3183.0,3182.0,3.29134]
[1720704793126,3.79099543,3183.1,3182.0,3.29134]
[1720704793365,0.64937543,3183.1,3182.1,0.06284239]
[1720704793525,0.64937543,3183.2,3182.2,2.2984]
[1720704793727,0.64937543,3183.5,3182.4,2.3155]
[1720704793925,0.64937543,3183.6,3182.5,0.23783339]
[1720704794163,0.64937543,3183.5,3182.5,0.23783339]
[1720704794572,0.64937543,3183.4,3182.5,0.23783339]
[1720704795733,0.64937543,3183.5,3182.5,0.23783339]
[1720704796130,3.14164,3183.1,3182.4,9.6055]
[1720704796969,0.64937543,3183.0,3182.4,9.6055]
[1720704797158,3.79094543,3183.2,3182.4,9.6055]
[1720704797486,3.14157,3183.2,3182.4,9.6055]
[1720704797779,3.14164,3183.1,3182.4,9.6055]
[1720704797924,3.52072666,3183.1,3182.4,9.6055]
[1720704798127,0.64922658,3183.3,3182.4,9.6055]
[1720704798333,3.14164,3183.1,3182.4,9.6055]
[1720704799026,0.64922658,3183.3,3182.4,9.6055]
[1720704799233,3.14134,3183.4,3182.4,9.6055]
[1720704799446,0.64922658,3183.5,3182.4,9.6055]
[1720704799650,3.79032658,3183.6,3182.5,0.96055]
[1720704800179,3.1414,3183.3,3182.4,9.6055]
[1720704800333,3.79037658,3183.6,3182.4,9.6055]
[1720704800659,3.14122,3183.5,3182.4,9.6055]
[1720704801070,3.1415,3183.2,3182.4,9.6055]
[1720704801365,0.31415,3183.1,3182.4,9.6055]
[1720704801868,4.34056658,3183.4,3182.4,9.6055]
[1720704802042,3.69134,3183.4,3182.4,9.6055]
[1720704802368,3.14113,3183.6,3182.4,9.6055]
[1720704802533,3.1412,3183.5,3182.4,9.6055]
[1720704802896,3.1414,3183.3,3182.4,9.6055]
[1720704803065,3.45554,3183.3,3182.4,9.6055]
[1720704803279,0.31414,3183.3,3182.4,9.6055]
[1720704803636,0.64922658,3183.8,3182.5,0.06284059]
[1720704803831,0.64922658,3184.1,3182.6,2.4832]
[1720704804151,0.41038674,3184.2,3182.7,3.2047885]
[1720704804357,0.64922658,3184.4,3182.9,2.4832]
[1720704804553,0.64922658,3184.4,3183.1,5.62476]
[1720704804749,3.78929658,3184.7,3183.2,0.06281707]
[1720704804948,0.64922658,3184.7,3183.2,0.06281707]
[1720704805153,0.64922658,3184.7,3183.3,2.4063]
[1720704805390,0.64922658,3184.7,3183.4,0.24691171]
[1720704805391,1.44410754,3184.6,3183.4,0.24691171]
[1720704805594,0.64922658,3184.8,3183.5,2.46911705]
[1720704805794,0.64922658,3185.1,3183.5,2.46911705]
[1720704805950,1.08754402,3185.0,3183.6,2.2915]
[1720704806157,1.7796196,3185.6,3183.6,2.2915]
[1720704806158,0.64922658,3185.7,3184.3,2.2915]
[1720704806355,0.64922658,3185.8,3184.4,0.06279605]
[1720704806580,1.46610253,3185.7,3184.5,0.23542961]
[1720704806792,0.37880566,3185.7,3184.5,0.23542961]
[1720704807114,0.64922658,3185.9,3184.6,0.06279367]
[1720704807406,1.29845316,3186.2,3184.6,0.06279367]
[1720704807407,1.08725237,3185.8,3184.6,0.06279367]
[1720704807619,0.64868234,3186.2,3184.7,2.424]
[1720704807767,0.64868234,3186.4,3185.0,3.13964]
[1720704807969,1.08707019,3186.3,3185.1,0.37674288]
[1720704808169,0.64868234,3186.5,3185.1,0.313964]
[1720704808400,4.87421457,3186.4,3185.1,0.313964]
[1720704808606,1.08713223,3186.3,3185.1,0.313964]
[1720704808807,3.78708234,3186.4,3185.1,0.313964]
[1720704809011,1.46582893,3186.3,3185.1,0.313964]
[1720704809309,1.46582893,3186.3,3184.9,7.29]
[1720704809310,0.64868234,3186.3,3184.9,7.29]
[1720704809477,3.78711234,3186.4,3184.9,7.29]
[1720704809668,1.08716811,3186.3,3184.9,7.29]
[1720704809869,0.64868234,3186.4,3185.0,0.06278516]
[1720704810175,3.78673234,3186.7,3185.2,2.4368]
[1720704810382,3.13832,3186.5,3185.2,2.4368]
[1720704810675,0.96309549,3186.6,3185.2,2.4368]
[1720704810894,0.96309549,3186.6,3185.3,0.06277804]
[1720704811404,0.64868234,3186.9,3185.4,3.13931]
[1720704811611,0.64868234,3187.0,3185.5,0.06277252]
[1720704811819,0.64868234,3187.1,3185.6,3.1391]
[1720704812045,0.64868234,3187.4,3185.8,3.13891]
[1720704812331,0.64868234,3187.4,3185.7,3.1950718]
[1720704812332,0.64868234,3187.7,3186.2,2.4029]
[1720704812483,0.64868234,3187.9,3186.3,3.20115507]
[1720704812686,1.62091408,3188.3,3186.5,3.13814]
[1720704812687,0.64868234,3188.1,3186.5,3.13814]
[1720704812928,0.64868234,3188.1,3186.7,2.4029]
[1720704813113,1.11904882,3188.6,3186.8,0.06274548]
[1720704813320,0.96348234,3188.6,3186.9,2.344]
[1720704813519,0.3148,3188.6,3187.1,3.13764]
[1720704813817,0.3148,3188.6,3187.3,2.344]
[1720704814004,3.13608,3188.7,3187.4,0.06273979]
[1720704814240,3.13608,3188.7,3187.3,2.344]
[1720704814439,3.13621,3188.6,3187.3,2.344]
[1720704814761,0.627229,3188.5,3187.3,2.344]
[1720704815561,3.13559,3189.2,3187.4,0.06273986]
[1720704815763,2.551,3189.3,3187.5,3.13725]
[1720704815964,0.3148,3189.5,3187.7,3.13701]
[1720704815965,0.3148,3189.4,3187.7,3.13701]
[1720704816166,5.68614,3189.7,3187.8,0.06272658]
[1720704816375,0.882121,3189.6,3188.0,2.2849]
[1720704816543,2.70333663,3189.7,3188.0,2.2849]
[1720704816740,2.551,3189.7,3188.0,5.42163]
[1720704816974,5.68609,3189.7,3188.0,5.42163]
[1720704817281,3.1355,3189.3,3188.0,2.2849]
[1720704817572,5.6865,3189.3,3188.0,2.2849]
[1720704817727,0.882195,3189.2,3188.0,2.2849]
[1720704818129,3.13591,3188.9,3188.0,2.2849]
[1720704818368,3.13578,3189.0,3188.0,2.2849]
[1720704818671,3.13624,3188.6,3187.7,7.29]
[1720704818973,0.55,3189.1,3187.5,2.3933]
[1720704818974,3.13669,3188.1,3187.5,2.3933]
[1720704819157,0.313669,3188.0,3187.5,2.3933]
[1720704819332,3.13686,3187.9,3187.3,7.29]
[1720704819528,3.450479,3188.0,3186.9,9.6027]
[1720704819771,0.313669,3188.0,3186.9,9.6027]
[1720704820130,3.13601,3188.8,3187.0,0.06274658]
[1720704820326,3.13607,3188.7,3187.0,3.13767]
[1720704820632,3.13598,3188.8,3187.0,3.13767]
[1720704820826,3.13598,3188.8,3186.9,9.6027]
[1720704820827,3.13608,3188.7,3186.9,9.6027]
[1720704821049,3.13598,3188.8,3186.9,9.6027]
[1720704821050,3.13618,3188.6,3186.9,9.6027]
[1720704821281,0.313618,3188.5,3187.0,2.29717361]
[1720704821429,0.313618,3188.5,3187.0,5.43490361]
[1720704821637,2.551,3188.9,3187.3,5.57007]
[1720704821871,3.13556,3189.3,3187.5,2.4203]
[1720704821872,2.551,3189.3,3187.5,2.4203]
[1720704822075,3.13581,3189.0,3187.5,2.4203]
[1720704822571,2.551,3189.3,3187.5,2.4203]
[1720704823342,3.13544,3189.4,3187.7,2.3794]
[1720704823763,3.13575,3189.1,3187.7,2.3794]
[1720704824132,3.13579,3189.0,3187.7,2.3794]
[1720704824372,0.627154,3188.9,3187.7,2.3794]
[1720704824669,3.13668,3188.1,3187.2,2.339]
[1720704824834,2.551,3188.7,3187.2,2.339]
[1720704825038,3.13628,3188.5,3187.2,2.339]
[1720704825341,2.7638,3189.0,3187.3,0.06274421]
[1720704825342,3.13597,3188.8,3187.3,0.06274421]
[1720704825545,3.13618,3188.6,3187.3,0.06274421]
[1720704825743,3.449918,3188.5,3187.2,2.339]
[1720704826171,3.13646,3188.3,3187.2,2.339]
[1720704826471,0.313618,3188.5,3187.2,2.339]
[1720704826637,0.313618,3188.5,3187.3,0.06273983]
[1720704826833,3.13604,3188.8,3187.3,0.06273983]
[1720704827049,3.29111482,3188.9,3187.3,3.13742]
[1720704827259,3.13588,3188.9,3187.2,2.339]
[1720704827579,2.83588,3188.9,3187.2,2.339]
[1720704827764,2.83588,3188.9,3187.0,7.29]
[1720704827765,0.15546868,3189.2,3187.6,5.58444]
[1720704827975,3.1354,3189.4,3187.8,2.4473]
[1720704828162,3.1354,3189.4,3187.9,0.06272728]
[1720704828363,3.13589,3188.9,3187.8,2.4473]
[1720704828873,3.13607,3188.7,3187.8,2.4473]
[1720704829075,5.51012,3189.2,3187.8,2.4473]
[1720704829076,3.13564,3189.2,3187.8,2.4473]
[1720704829295,2.551,3189.3,3187.9,0.30745809]
[1720704829296,0.568664,3189.1,3187.9,0.30745809]
[1720704829488,2.551,3189.3,3187.8,2.4473]
[1720704829653,3.68564,3189.2,3187.8,2.4473]
[1720704829996,3.13579,3189.0,3187.8,2.4473]
[1720704830363,3.13607,3188.7,3187.8,2.4473]
[1720704830896,3.13636,3188.4,3187.0,7.29]
[1720704831194,0.55,3189.2,3187.1,2.3968]
[1720704831195,3.13668,3188.1,3187.1,2.3968]
[1720704831489,0.55,3188.0,3187.1,2.3968]
[1720704831654,5.68817,3187.6,3186.6,2.3968]
[1720704831860,3.13726,3187.5,3186.6,2.3968]
[1720704832053,0.55,3187.5,3186.6,2.3968]
[1720704832288,3.44746,3187.4,3186.6,2.3968]
[1720704832484,3.13745,3187.3,3186.6,2.3968]
[1720704832655,0.3101,3187.4,3186.6,2.3968]
[1720704833186,2.551,3187.6,3186.6,2.3968]
[1720704833391,2.2547,3188.4,3186.6,2.3968]
[1720704833392,3.13713,3187.7,3186.6,2.3968]
[1720704833751,3.13715,3187.6,3186.6,2.3968]
[1720704833948,3.13689,3187.9,3186.6,2.3968]
[1720704834153,2.551,3188.0,3186.6,2.3968]
[1720704834154,3.13707,3187.7,3186.6,2.3968]
[1720704834399,3.13729,3187.5,3186.6,2.3968]
[1720704835037,3.13751,3187.3,3186.6,2.3968]
[1720704835237,0.313707,3187.6,3186.1,2.2673]
[1720704835238,2.551,3187.5,3186.1,2.2673]
[1720704835438,3.13783,3187.0,3186.1,2.2673]
[1720704835800,3.101,3187.5,3186.0,7.29]
[1720704835801,3.13831,3186.5,3186.0,7.29]
[1720704836000,3.13853,3186.3,3185.6,2.3768]
[1720704836198,3.1386,3186.2,3185.6,2.3768]
[1720704836797,4.002161,3186.4,3185.4,7.29]
[1720704836798,3.1388,3186.0,3185.4,7.29]
[1720704837012,3.13895,3185.8,3185.4,6.39804118]
[1720704837300,4.002201,3186.4,3184.8,2.3768]
[1720704837301,3.13866,3186.1,3184.8,2.3768]
[1720704837539,0.313866,3186.0,3184.8,3.25428412]
[1720704837855,3.452676,3186.0,3184.8,3.25428412]
[1720704838138,3.452606,3186.0,3184.8,3.25428412]
[1720704838298,3.13903,3185.7,3184.8,2.3768]
[1720704839406,3.13913,3185.6,3184.8,2.3768]
[1720704839650,3.13924,3185.5,3184.8,2.3768]
[1720704839804,3.1394,3185.4,3184.8,2.3768]
[1720704840000,3.13951,3185.3,3184.7,6.39804118]
[1720704840319,0.313951,3185.2,3184.3,8.89154118]
[1720704840580,3.1397,3185.1,3184.3,8.89154118]
[1720704840951,0.313951,3185.2,3184.3,8.89154118]
[1720704841269,3.13958,3185.2,3184.3,8.89154118]
[1720704841484,2.8658,3185.7,3184.3,8.89154118]
[1720704841649,3.13978,3185.0,3184.3,8.89154118]
[1720704842179,3.13965,3185.1,3184.3,8.89154118]
[1720704842381,3.13899,3185.8,3184.3,8.89154118]
[1720704842682,0.38421848,3185.7,3184.4,0.95195114]
[1720704842838,0.313866,3186.0,3184.5,2.3717]
[1720704843039,3.452606,3186.0,3184.6,0.06279232]
[1720704843460,0.313866,3186.0,3184.6,0.06279232]
[1720704843661,0.313831,3186.4,3184.7,2.4361]
[1720704843943,0.313831,3186.4,3184.9,2.4792]
[1720704844235,3.13816,3186.6,3185.1,2.4552]
[1720704844585,3.13905,3185.7,3185.1,2.4552]
[1720704844939,3.13871,3186.1,3185.1,2.4552]
[1720704845133,2.608,3186.5,3185.1,2.4552]
[1720704845134,3.13832,3186.5,3185.1,2.4552]
[1720704845670,3.13832,3186.5,3183.5,7.64115]
[1720704845671,1.8148,3186.8,3184.6,6.39804118]
[1720704845892,3.13914,3185.6,3184.6,6.39804118]
[1720704846045,3.13853,3186.2,3184.6,6.39804118]
[1720704846248,3.13853,3186.2,3184.7,0.06278834]
[1720704846546,0.3148,3186.5,3184.8,2.3461]
[1720704846751,3.139,3185.8,3184.8,2.3461]
[1720704847081,3.13838,3186.4,3184.8,2.3461]
[1720704847082,3.13837,3186.4,3184.8,2.3461]
[1720704847246,1.28227355,3187.0,3184.9,2.50468202]
[1720704847247,0.64113677,3187.0,3184.9,2.50468202]
[1720704847456,0.3148,3186.6,3185.0,2.4419]
[1720704847634,0.3148,3186.6,3185.0,5.58161]
[1720704847838,3.13832,3186.5,3185.0,2.4419]
[1720704848075,3.13804,3186.7,3184.6,6.39804118]
[1720704848076,3.29541119,3187.1,3185.2,2.421]
[1720704848239,3.13825,3186.5,3185.2,2.421]
[1720704848440,3.13848,3186.3,3185.2,2.421]
[1720704848785,3.13869,3186.1,3185.2,2.421]
[1720704849139,3.13848,3186.3,3185.2,2.421]
[1720704849397,3.13928,3185.5,3184.6,2.4465]
[1720704849878,3.13934,3185.4,3184.6,2.4465]
[1720704850183,3.13959,3185.2,3184.6,2.4465]
[1720704850478,3.14,3184.8,3184.1,2.4185]
[1720704850690,3.14,3184.8,3184.0,6.39804118]
[1720704850691,3.14042,3184.3,3183.5,2.4185]
[1720704851179,3.14061,3184.1,3183.5,2.4185]
[1720704851571,3.14058,3184.2,3183.5,2.4185]
[1720704851813,3.14061,3184.1,3183.5,2.4185]
[1720704851988,3.14081,3183.9,3183.3,6.39804118]
[1720704852645,3.141,3183.7,3183.3,6.39804118]
[1720704852836,3.14081,3183.9,3183.3,6.39804118]
[1720704853082,0.628144,3183.9,3183.3,6.39804118]
[1720704853240,3.768974,3183.9,3183.3,6.39804118]
[1720704853654,0.628144,3183.9,3183.3,6.39804118]
[1720704853975,0.314058,3184.2,3183.3,6.39804118]
[1720704854200,3.14078,3184.0,3183.3,6.39804118]
[1720704854336,3.14038,3184.4,3183.3,6.39804118]
[1720704854535,0.55,3184.3,3183.3,6.39804118]
[1720704854793,0.3148,3184.9,3183.4,2.47672605]
[1720704854950,3.1397,3185.1,3183.4,2.47672605]
[1720704855289,1.63702997,3185.6,3183.6,3.14101]
[1720704855290,0.345387,3185.6,3183.6,3.14101]
[1720704855439,0.345387,3185.6,3183.5,0.88747672]
[1720704855440,3.13933,3185.4,3183.7,5.61769374]
[1720704855639,3.13933,3185.4,3183.8,0.06280374]
[1720704855844,3.13942,3185.3,3183.8,0.06280374]
[1720704856151,0.345387,3185.6,3183.7,2.4139]
[1720704856351,0.3148,3185.7,3183.7,2.4139]
[1720704856352,3.1401,3184.7,3183.7,2.4139]
[1720704856575,0.3148,3185.5,3183.7,2.4139]
[1720704856747,3.13931,3185.5,3183.8,0.06281178]
[1720704856954,3.13906,3185.7,3183.8,0.06281178]
[1720704857151,3.13906,3185.7,3183.8,3.20368178]
[1720704857357,3.484446,3185.7,3184.0,2.277]
[1720704857578,3.1395,3185.3,3184.0,2.33980015]
[1720704857896,0.345386,3185.7,3184.0,2.277]
[1720704857897,3.13916,3185.6,3184.0,2.277]
[1720704858062,3.13916,3185.6,3184.1,0.0628031]
[1720704858264,3.13949,3185.3,3184.0,2.277]
[1720704858451,0.627888,3185.3,3184.1,0.29113682]
[1720704858659,0.345386,3185.7,3184.2,0.06280013]
[1720704858982,6.27776,3185.9,3184.2,0.06280013]
[1720704859162,0.3148,3186.3,3184.2,0.06280013]
[1720704859163,0.50211377,3186.3,3184.2,0.06280013]
[1720704859404,3.13875,3186.0,3184.3,0.06279577]
[1720704859600,0.50211377,3186.3,3184.4,5.5347]
[1720704859601,6.27722,3186.2,3184.4,5.5347]
[1720704859804,3.13876,3186.0,3184.5,0.06279078]
[1720704860000,3.13883,3185.9,3184.6,0.55974908]
[1720704860505,3.13871,3186.1,3184.7,0.06279083]
[1720704860705,0.3148,3186.3,3184.7,0.06279083]
[1720704861116,3.13874,3186.0,3184.6,0.55974908]
[1720704861285,3.13859,3186.2,3184.4,2.3944]
[1720704861286,0.3148,3186.3,3184.7,0.06278768]
[1720704861911,3.13874,3186.0,3184.4,2.3944]
[1720704862828,3.13899,3185.8,3184.4,2.3944]
[1720704863001,3.13909,3185.7,3184.4,2.3944]
[1720704863213,3.13914,3185.6,3184.4,2.3944]
[1720704863415,0.313914,3185.5,3184.4,2.3944]
[1720704863643,4.003214,3185.5,3184.4,2.3944]
[1720704863847,0.313914,3185.5,3184.4,2.3944]
[1720704864021,3.13895,3185.8,3184.4,2.3944]
[1720704864217,1.08734269,3185.7,3184.4,2.3944]
[1720704864443,3.13903,3185.7,3184.4,2.3944]
[1720704864642,1.08736784,3185.6,3184.4,2.3944]
[1720704864846,0.73653378,3185.6,3184.5,0.23944]
[1720704865153,3.1386,3186.2,3184.6,0.06279299]
[1720704865331,3.13876,3186.0,3184.6,0.06278786]
[1720704865650,1.08725719,3185.9,3184.6,0.06278786]
[1720704866009,3.13858,3186.2,3184.6,0.06278786]
[1720704866211,3.13879,3186.0,3184.6,0.06278786]
[1720704866442,3.13879,3186.0,3184.6,0.26966279]
[1720704866443,3.13899,3185.8,3184.6,0.26966279]
[1720704866604,0.47760318,3185.9,3184.6,0.26966279]
[1720704867330,4.2261989,3185.8,3184.6,0.26966279]
[1720704867543,1.0872689,3185.7,3184.6,0.26966279]
[1720704867960,0.47760318,3185.9,3184.6,0.26966279]
[1720704867961,1.08724187,3185.8,3184.6,0.26966279]
[1720704868111,3.61648318,3185.9,3184.6,0.26966279]
[1720704868307,1.08724869,3185.8,3184.6,0.26966279]
[1720704868515,3.61648318,3185.9,3184.6,0.26966279]
[1720704868516,1.55765319,3185.7,3184.6,0.26966279]
[1720704868827,0.47037319,3185.7,3184.6,0.26966279]
[1720704869022,3.60947319,3185.7,3184.6,0.26966279]
[1720704869423,1.08734353,3185.6,3184.6,0.26966279]
[1720704869629,0.47037319,3185.7,3184.6,0.26966279]
[1720704870425,1.44825632,3185.6,3184.4,2.3944]
[1720704870635,0.36093132,3185.6,3184.4,2.3944]
[1720704871143,3.50011132,3185.6,3184.4,2.3944]
[1720704871315,1.08735486,3185.5,3184.4,2.3944]
[1720704871513,3.50011132,3185.6,3184.4,2.3944]
[1720704871747,0.41095745,3185.5,3184.4,2.3944]
[1720704872050,3.13949,3185.3,3184.4,2.3944]
[1720704872365,3.13981,3184.9,3184.4,2.3944]
[1720704872516,3.1397,3185.1,3184.4,2.3944]
[1720704872714,0.64582148,3185.4,3184.4,2.3944]
[1720704872715,3.13974,3185.0,3184.4,2.3944]
[1720704873017,3.13992,3184.8,3184.4,2.3944]
[1720704873333,3.14015,3184.6,3184.0,6.39804118]
[1720704873511,3.14022,3184.5,3184.0,6.39804118]
[1720704873711,3.14062,3184.1,3183.5,6.39804118]
[1720704873953,3.14062,3184.1,3183.4,2.4334]
[1720704874163,2.84062,3184.1,3183.4,2.4334]
[1720704874608,3.14073,3184.0,3183.4,2.4334]
[1720704874812,3.14092,3183.8,3183.4,2.4334]
[1720704875037,3.14073,3184.0,3183.4,2.4334]
[1720704875208,0.64582148,3184.2,3183.4,2.4334]
[1720704875508,4.10914223,3184.3,3183.4,3.31654412]
[1720704875509,0.64582148,3184.3,3183.4,3.31654412]
[1720704875712,0.83346263,3184.5,3183.4,3.31654412]
[1720704875937,1.73453646,3184.4,3183.4,3.31654412]
[1720704876150,0.92686849,3184.3,3183.4,3.31654412]
[1720704876351,0.28006744,3184.2,3183.4,3.31654412]
[1720704876564,0.92686249,3184.2,3183.5,0.33165441]
[1720704876848,0.64680105,3184.3,3183.5,0.33165441]
[1720704877060,0.64680105,3184.2,3183.5,0.33165441]
[1720704877259,0.64680105,3184.0,3183.4,2.4334]
[1720704877411,0.64680105,3183.8,3183.4,2.4334]
[1720704877611,1.29360211,3184.1,3183.4,2.4334]
[1720704877612,3.78760105,3183.9,3183.4,2.4334]
[1720704877816,0.92709566,3183.8,3183.4,2.4334]
[1720704878073,0.92712639,3183.7,3183.2,6.39804118]
[1720704878277,0.92712639,3183.7,3182.9,8.83144118]
[1720704878278,0.64680105,3183.5,3182.9,8.83144118]
[1720704878589,4.11123158,3183.7,3182.9,9.7145853]
[1720704878590,0.64680105,3183.7,3182.9,9.7145853]
[1720704878871,0.64680105,3183.8,3182.9,9.7145853]
[1720704879437,0.92711623,3183.8,3182.9,9.7145853]
[1720704879685,0.92711623,3183.8,3183.0,2.49622412]
[1720704879686,0.64680105,3183.8,3183.0,2.49622412]
[1720704879855,0.64680105,3184.3,3183.2,2.4334]
[1720704880054,0.64680105,3184.5,3183.3,0.06281401]
[1720704880273,0.92719585,3184.4,3183.3,0.06281401]
[1720704880482,0.92719585,3184.3,3183.2,2.4334]
[1720704880695,0.2803948,3184.2,3183.2,2.4334]
[1720704880985,3.78740105,3184.1,3183.2,2.4334]
[1720704881192,0.64680105,3183.8,3183.2,2.4334]
[1720704881339,0.64680105,3183.6,3183.2,2.4334]
[1720704881736,0.64680105,3183.8,3183.2,2.4334]
[1720704882269,4.11092158,3184.0,3183.2,2.4334]
[1720704882270,0.9334815,3183.7,3183.2,2.4334]
[1720704882473,0.64813905,3183.7,3183.2,2.4334]
[1720704883447,0.64813905,3183.6,3183.2,2.4334]
[1720704883662,0.64813905,3183.8,3183.2,2.4334]
[1720704883983,0.64813905,3183.9,3183.3,0.06282548]
[1720704884177,0.64813905,3184.0,3183.2,2.67674]
[1720704884591,0.64813905,3184.1,3183.3,0.06281803]
[1720704884885,0.64813905,3184.3,3183.3,0.06281803]
[1720704885095,0.64813905,3184.3,3183.2,5.81822]
[1720704885096,0.28525664,3184.2,3183.2,2.67674]
[1720704885305,0.93339569,3184.1,3183.2,2.67674]
[1720704885599,0.64813905,3184.0,3183.2,2.4334]
[1720704885972,0.64813905,3184.1,3183.2,2.4334]
[1720704886175,0.64813905,3184.1,3183.3,0.06281801]
[1720704886380,0.64813905,3184.1,3183.2,2.4334]
[1720704886381,0.64813905,3183.8,3183.2,2.4334]
[1720704886697,0.9333741,3183.7,3183.2,2.4334]
[1720704886918,0.64813905,3183.6,3182.7,2.3745]
[1720704887106,0.64813905,3183.5,3182.7,2.3745]
[1720704887262,3.1414,3183.3,3182.7,2.3745]
[1720704887464,0.64813905,3183.1,3182.6,6.39804118]
[1720704887670,0.81884727,3183.1,3182.6,6.39804118]
[1720704888106,1.46698632,3183.1,3182.6,6.39804118]
[1720704888798,0.81884727,3183.1,3182.6,6.39804118]
[1720704888995,1.46698632,3183.1,3182.2,2.3432]
[1720704889301,3.14169,3183.0,3182.2,2.3432]
[1720704889510,3.69958409,3183.0,3182.2,2.3432]
[1720704889724,3.14203,3182.7,3182.2,2.3432]
[1720704889869,3.14208,3182.6,3182.2,2.3432]
[1720704890209,0.28842957,3182.5,3182.2,2.3432]
[1720704890380,0.93572345,3182.5,3181.9,6.39804118]
[1720704890577,3.78944144,3182.6,3181.9,6.39804118]
[1720704890784,3.14237,3182.4,3181.8,2.3955]
[1720704890983,0.93572997,3182.3,3181.8,2.3955]
[1720704891254,0.28838195,3182.2,3181.8,2.3955]
[1720704891517,3.78982144,3182.3,3181.8,2.3955]
[1720704891891,0.28826074,3182.2,3181.5,6.39804118]
[1720704892087,3.78911947,3182.3,3181.3,2.4155]
[1720704892292,3.78911947,3182.3,3181.3,3.29685412]
[1720704892777,0.64665947,3182.5,3181.3,3.35971112]
[1720704893111,1.29331895,3182.8,3181.3,3.35971112]
[1720704893112,0.64665947,3182.7,3181.3,3.35971112]
[1720704893684,0.64665947,3183.0,3181.4,2.2663]
[1720704894015,3.14169,3183.0,3181.5,2.32914079]
[1720704894214,4.57834934,3183.0,3181.6,0.23291408]
[1720704894443,4.57834934,3183.0,3181.7,0.06284511]
[1720704894624,0.28790726,3182.9,3181.7,0.06284511]
[1720704894916,1.43665934,3183.0,3181.7,0.06284511]
[1720704895102,3.78844947,3182.9,3181.7,0.06284511]
[1720704895281,0.28798751,3182.8,3181.7,0.25620592]
[1720704895480,0.64665947,3183.0,3181.9,2.4492]
[1720704895779,0.64665947,3183.1,3181.9,2.4492]
[1720704896177,0.64665947,3183.2,3182.0,0.06283798]
[1720704897203,0.64665947,3183.3,3182.0,0.06283798]
[1720704897403,3.78796947,3183.4,3182.1,0.2512038]
[1720704897590,4.07579761,3183.3,3182.2,0.06283798]
[1720704897795,0.28775948,3183.2,3182.2,0.06283798]
[1720704898112,0.64665947,3183.4,3182.3,2.3762]
[1720704898281,3.14124,3183.5,3182.4,0.30674054]
[1720704898484,3.78708398,3183.5,3182.4,0.30674054]
[1720704898678,0.64584398,3183.5,3182.4,0.30674054]
[1720704898989,0.63584398,3184.0,3182.5,2.4837]
[1720704899331,4.10917597,3184.3,3182.7,2.4837]
[1720704899621,0.96876597,3184.1,3182.9,2.4837]
[1720704899848,0.54008639,3184.2,3183.0,0.06282214]